Workbook

Sheet Summary
A3: Paragon Mortgages (No.29) PLC
A5: Information as at the Principal Determination Date | B5: 2023-11-30 | C5: 2024-02-29 | D5: 2024-05-31
A6: Mortgage Asset Balance | B6: 896137.1651 | C6: 890002.4116 | D6: 878676.1209
A7: Mandatory Further Advance Prefunding Reserve | B7: 702 | C7: 644 | D7: 644
A8: Available Principal Cash | B8: 0 | C8: 0 | D8: 0
A9: Retained Principal Ledger Balance for Substitutions | B9: 3161 | C9: 9354 | D9: 20680
A10: Total Assets | B10: =+B6+B7+B8+B9 -> 900000.1651 | C10: =+C6+C7+C8+C9 -> 900000.4116 | D10: =+D6+D7+D8+D9 -> 900000.1209
A11: Total Notes (Class A, B, C, D and Z Notes) | B11: =SUM(B12:B16) -> 900000 | C11: =SUM(C12:C16) -> 900000 | D11: =SUM(D12:D16) -> 900000
A12: Class A Notes | B12: 747000 | C12: 747000 | D12: 747000
A13: Class B Notes | B13: 33750 | C13: 33750 | D13: 33750
A14: Class C Notes | B14: 29250 | C14: 29250 | D14: 29250
A15: Class D Notes | B15: 45000 | C15: 45000 | D15: 45000
A16: Class Z Notes | B16: 45000 | C16: 45000 | D16: 45000
A17: Class A and B Liquidity Reserve Fund (1.50% of the outstanding Class A and B Notes) | B17: =SUM(747000+33750)*1.5% -> 11711.25 | C17: =SUM(B12+B13)*1.5% -> 11711.25 | D17: =SUM(C12+C13)*1.5% -> 11711.25
A18: General Reserve Fund (1.50% of the outstanding Class C and D Notes) | B18: =SUM(B14:B15)*1.5% -> 1113.75 | C18: =SUM(B14:B15)*1.5% -> 1113.75 | D18: =SUM(C14:C15)*1.5% -> 1113.75
A19: Class B, C , D and Z Notes as a % of the Total Notes | B19: =SUM(B12:B16)/B11 -> 1 | C19: =SUM(C12:C16)/C11 -> 1 | D19: =SUM(D12:D16)/D11 -> 1
A20: Retained Notes held by Paragon Bank PLC (Class A, B, C, D and Z Notes) | B20: =B11 -> 900000 | C20: =C11 -> 900000 | D20: =D11 -> 900000
A21: Lifetime Redemption Rate | B21: 0.0279 | C21: 0.0272 | D21: 0.0364
A22: Quarterly Redemption Rate | B22: 0.0035 | C22: 0.0069 | D22: 0.0126
A23: PM2010 Lifetime Redemption Rate | B23: 0.0503 | C23: 0.0609 | D23: 0.0747
A24: Paragon Bank Lifetime Redemption Rate | B24: 0.0197 | C24: 0.0145 | D24: 0.0216
A25: Further Advances released in the quarter | B25: 0 | C25: 0 | D25: 0
A26: Opening PDL Balance | B26: 0 | C26: 0 | D26: 0
A27: Quarterly Losses | B27: =+B99+B130+B161+B192 -> 0 | C27: =+C99+C130+C161+C192 -> 0 | D27: =+D99+D130+D161+D192 -> 0
A28: Quarterly Loss Rate (annualised) | B28: =1-(1-B27/B6)^4 -> 0 | C28: =1-(1-C27/C6)^4 -> 0 | D28: =1-(1-D27/D6)^4 -> 0
A29: PDL Replenishment made during the quarter (-ve = recoveries) | B29: 0 | C29: 0 | D29: 0
A30: Outstanding PDL at end of the quarter | B30: =B26+B27-B29 -> 0 | C30: 0 | D30: =D26+D27-D29 -> 0
A31: Spread Trap repayment in the quarter | B31: N/A | C31: N/A | D31: N/A
A32: Spread % (WA Funding Rate less WA Interest Rate) | B32: 0 | C32: 0 | D32: 0
A33: Total Income as a % of the Assets | B33: 0.007573333333 | C33: 0.0201 | D33: 0.0204
A34: Quarterly surplus income to the Issuer | B34: 0 | C34: 1515 | D34: 1864
A35: Surplus Income as a % of the Assets | B35: =+B34/900000 -> 0 | C35: =+C34/B10 -> 0.001683333024 | D35: =+D34/C10 -> 0.002071110164
A36: Losses as a % of the Assets | B36: =+B27/900000 -> 0 | C36: =+C27/B10 -> 0 | D36: =+D27/C10 -> 0
A37: Number of Properties in Possession | B37: =+B97+B128+B159 -> 0 | C37: 0 | D37: =+D97+D128+D159+D190 -> 0
A38: Appointment of a Receiver of Rent | B38: 0 | C38: 0 | D38: =+D98+D129+D160+D191 -> 1
A39: Average Number of months (Possessions) in Arrears at the Sale Date | B39: 0 | C39: 0 | D39: 0
A40: Average Number of months (RoR) in Arrears at the Sale Date | B40: 0 | C40: 0 | D40: 0
A41: Arrears excluding Receiver of Rent and Possession Cases
A42: Performing Loans | B42: 1 | C42: 0.9995988213 | D42: 0.9990268036
A43: >1 to 2 months arrears | B43: 0 | C43: 0.0004011786882 | D43: 0.0007368860645
A44: >2 to 3 months arrears | B44: 0 | C44: 0 | D44: 0.0002363102935
A45: >3 months arrears | B45: 0 | C45: 0 | D45: 0
A46: Total | B46: =SUM(B42:B45) -> 1 | C46: =SUM(C42:C45) -> 1 | D46: =SUM(D42:D45) -> 1
A47: Total Value of Arrears (£000's) | B47: 5.14303931 | C47: 9.998829474 | D47: 20.84069069
A48: Total Value of Arrears as a % of the Notes (£900,000,000) | B48: =+B47/900000 -> 5.714488122e-06 | C48: =+C47/900000 -> 1.110981053e-05 | D48: =+D47/900000 -> 2.315632299e-05
A50: Underlying Assets | B50: =+B5 -> 2023-11-30 | C50: =+C5 -> 2024-02-29 | D50: =+D5 -> 2024-05-31
A51: Weighted Average LTV | B51: 0.693930459 | C51: 0.6936452433 | D51: 0.6932992472
A52: Weighted Average Nationwide Indexed LTV | B52: 0.6521152052 | C52: 0.6581113938 | D52: 0.6550837053
A53: % of Fixed Rate Mortgages (reverting to Term SONIA plus a variable margin) | B53: 0 | C53: 0 | D53: 0
A54: % of Fixed Rate Mortgages (reverting to SVR) | B54: 0.8234076191 | C54: 0.8226202123 | D54: 0.8260064019
A55: % of Term SONIA Linked Mortgages (reverting to Term SONIA plus a variable margin) | B55: 0 | C55: 0 | D55: 0
A56: % of Term SONIA Linked Mortgages plus a Variable Margin | B56: 0 | C56: 0 | D56: 0
A57: % of Non Reversionary Term SONIA Linked Mortgages | B57: 0 | C57: 0 | D57: 0
A58: % of SVR Mortgages | B58: 0.1765923809 | C58: 0.1773797877 | D58: 0.1739935981
A59: Weighted Average Loan Size | B59: 216144.9988 | C59: 216703.7769 | D59: 217117.895
A60: Weighted Average Interest Rate | B60: 0.04706332232 | C60: 0.04746715095 | D60: 0.04797134795
A61: Weighted Average Maturity Date (years) | B61: 18.3194042 | C61: 18.10427654 | D61: 17.90484962
A62: Weighted Average Seasoning (months) | B62: 39.64563605 | C62: 42.32481001 | D62: 44.91335465
A63: % of Interest Only Mortgages (optional switching to repayment) | B63: 0.953686044 | C63: 0.9544736519 | D63: 0.9552497679
A64: % of Repayment Mortgages | B64: 0.04631395604 | C64: 0.04552634809 | D64: 0.04475023208
A65: % of Mortgages in London | B65: 0.196492952 | C65: 0.1957499492 | D65: 0.1946140878
A66: % of Mortgages in the South East | B66: 0.3098426598 | C66: 0.3103356556 | D66: 0.3109640988
A67: % of Owner Occupied Mortgages | B67: 0 | C67: 0 | D67: 0
A68: % of Investment Home Loans - Professional Landlords | B68: 0.7892982596 | C68: 0.7901769592 | D68: 0.7898441743
A69: % of Investment Home Loans - Emerging Professional Landlords | B69: 0.2107017404 | C69: 0.2098230408 | D69: 0.2101558257
A70: Weighted Average Interest Coverage Ratio (calculated at the origination date) | B70: 1.821071376 | C70: 1.822903817 | D70: 1.826540403
A71: % of PM2010 Originated Assets (Professional) | B71: 0.2078292811 | C71: 0.20569317 | D71: 0.2022646726
A72: % of PM2010 Originated Assets (Emerging Professional) | B72: 0.07494530219 | C72: 0.0742173952 | D72: 0.07427607795
A73: % of Paragon Bank Originated Assets (Professional) | B73: 0.5814689786 | C73: 0.5844837892 | D73: 0.5875795017
A74: % of Paragon Bank Originated Assets (Emerging Professional) | B74: 0.1357564382 | C74: 0.1356056456 | D74: 0.1358797477
A76: Underlying Assets - Paragon Mortgages 2010 Originated Assets (Professional) | B76: =+B5 -> 2023-11-30 | C76: =+C5 -> 2024-02-29 | D76: =+D5 -> 2024-05-31
A77: Weighted Average LTV | B77: 0.7116917234 | C77: 0.7113997362 | D77: 0.7110157415
A78: Weighted Average Nationwide Indexed LTV | B78: 0.5540839583 | C78: 0.5580051468 | D78: 0.5547491955
A79: % of Fixed Rate Mortgages (reverting to Term SONIA plus a variable margin) | B79: 0 | C79: 0 | D79: 0
A80: % of Fixed Rate Mortgages (reverting to SVR) | B80: 0.825488089 | C80: 0.825291858 | D80: 0.8269285306
A81: % of Term SONIA Linked Mortgages (reverting to Term SONIA plus a variable margin) | B81: 0 | C81: 0 | D81: 0
A82: % of Term SONIA Linked Mortgages plus a Variable Margin | B82: 0 | C82: 0 | D82: 0
A83: % of Non Reversionary Term SONIA Linked Mortgages | B83: 0 | C83: 0 | D83: 0
A84: % of SVR Mortgages | B84: 0.174511911 | C84: 0.174708142 | D84: 0.1730714694
A85: Weighted Average Loan Size | B85: 175205.5906 | C85: 175184.1314 | D85: 174582.6502
A86: Weighted Average Interest Rate | B86: 0.04547125749 | C86: 0.04622331689 | D86: 0.04741970732
A87: Weighted Average Maturity Date (years) | B87: 13.41538802 | C87: 13.19522523 | D87: 13.02692674
A88: Weighted Average Seasoning (months) | B88: 93.29709299 | C88: 96.2530703 | D88: 99.27556424
A89: % of Interest Only Mortgages (optional switching to repayment) | B89: 0.9470393786 | C89: 0.9480181181 | D89: 0.9454358901
A90: % of Repayment Mortgages | B90: 0.05296062136 | C90: 0.05198188185 | D90: 0.05456410985
A91: % of Mortgages in London | B91: 0.2403186829 | C91: 0.2359136128 | D91: 0.2356158252
A92: % of Mortgages in the South East | B92: 0.3102103804 | C92: 0.3120795802 | D92: 0.3119162416
A93: % of Owner Occupied Mortgages | B93: 0 | C93: 0 | D93: 0
A94: % of Investment Home Loans - Professional Landlords | B94: 1 | C94: 1 | D94: 1
A95: % of Investment Home Loans - Emerging Professional Landlords | B95: 0 | C95: 0 | D95: 0
A96: Weighted Average Interest Coverage Ratio (calculated at the origination date) | B96: 1.61853078 | C96: 1.6190069 | D96: 1.624474864
A97: Number of Properties in Possession | B97: 0 | C97: 0 | D97: 0
A98: Appointment of a Receiver of Rent | B98: 0 | C98: 0 | D98: 1
A99: PML Quarterly Losses | B99: 0 | C99: 0 | D99: 0
A100: Arrears excluding Receiver of Rent and Possession Cases
A101: Performing Loans | B101: 1 | C101: 1 | D101: 0.9983646461
A102: >1 to 2 months arrears | B102: 0 | C102: 0 | D102: 0.001635353916
A103: >2 to 3 months arrears | B103: 0 | C103: 0 | D103: 0
A104: >3 months arrears | B104: 0 | C104: 0 | D104: 0
A105: Total | B105: =SUM(B101:B104) -> 1 | C105: =SUM(C101:C104) -> 1 | D105: =SUM(D101:D104) -> 1
A107: Underlying Assets - Paragon Mortgages 2010 Originated Assets (Emerging Professional) | B107: =+B76 -> 2023-11-30 | C107: 2024-02-29 | D107: =+D76 -> 2024-05-31
A108: Weighted Average LTV | B108: 0.6947221389 | C108: 0.6943429828 | D108: 0.6925530345
A109: Weighted Average Nationwide Indexed LTV | B109: 0.5456322856 | C109: 0.549700499 | D109: 0.5464780811
A110: % of Fixed Rate Mortgages (reverting to Term SONIA plus a variable margin) | B110: 0 | C110: 0 | D110: 0
A111: % of Fixed Rate Mortgages (reverting to SVR) | B111: 0.7841600908 | C111: 0.7687276998 | D111: 0.758077406
A112: % of Term SONIA Linked Mortgages (reverting to Term SONIA plus a variable margin) | B112: 0 | C112: 0 | D112: 0
A113: % of Term SONIA Linked Mortgages plus a Variable Margin | B113: 0 | C113: 0 | D113: 0
A114: % of Non Reversionary Term SONIA Linked Mortgages | B114: 0 | C114: 0 | D114: 0
A115: % of SVR Mortgages | B115: 0.2158399092 | C115: 0.2312723002 | D115: 0.241922594
A116: Weighted Average Loan Size | B116: 176740.1859 | C116: 178042.2122 | D116: 178807.1673
A117: Weighted Average Interest Rate | B117: 0.04637938231 | C117: 0.04886361171 | D117: 0.05093521676
A118: Weighted Average Maturity Date (years) | B118: 14.21347785 | C118: 13.99349978 | D118: 13.7699415
A119: Weighted Average Seasoning (months) | B119: 92.35922116 | C119: 95.33855 | D119: 98.27903019
A120: % of Interest Only Mortgages (optional switching to repayment) | B120: 0.9144896454 | C120: 0.9152717342 | D120: 0.915611485
A121: % of Repayment Mortgages | B121: 0.08551035463 | C121: 0.08472826577 | D121: 0.08438851499
A122: % of Mortgages in London | B122: 0.2715284329 | C122: 0.2769629459 | D122: 0.275914643
A123: % of Mortgages in the South East | B123: 0.4080036838 | C123: 0.4062346545 | D123: 0.4109338114
A124: % of Owner Occupied Mortgages | B124: 0 | C124: 0 | D124: 0
A125: % of Investment Home Loans - Professional Landlords | B125: 0 | C125: 0 | D125: 0
A126: % of Investment Home Loans - Emerging Professional Landlords | B126: 1 | C126: 1 | D126: 1
A127: Weighted Average Interest Coverage Ratio (calculated at the origination date) | B127: 1.542676215 | C127: 1.549525699 | D127: 1.546013024
A128: Number of Properties in Possession | B128: 0 | C128: 0 | D128: 0
A129: Appointment of a Receiver of Rent | B129: 0 | C129: 0 | D129: 0
A130: MTL Quarterly Losses | B130: 0 | C130: 0 | D130: 0
A131: Arrears excluding Receiver of Rent and Possession Cases
A132: Performing Loans | B132: 1 | C132: 1 | D132: 0.9968193307
A133: >1 to 2 months arrears | B133: 0 | C133: 0 | D133: 0
A134: >2 to 3 months arrears | B134: 0 | C134: 0 | D134: 0.00318066929
A135: >3 months arrears | B135: 0 | C135: 0 | D135: 0
A136: Total | B136: =SUM(B132:B135) -> 1 | C136: =SUM(C132:C135) -> 1 | D136: =SUM(D132:D135) -> 1
A138: Underlying Assets - Paragon Bank (or Paragon Bank Aquired) Originated Assets (Professional) | B138: =+B107 -> 2023-11-30 | C138: 2024-02-29 | D138: =+D107 -> 2024-05-31
A139: Weighted Average LTV | B139: 0.6902085323 | C139: 0.6900969409 | D139: 0.6899674909
A140: Weighted Average Nationwide Indexed LTV | B140: 0.695139193 | C140: 0.7012119722 | D140: 0.6972834418
A141: % of Fixed Rate Mortgages (reverting to Term SONIA plus a variable margin) | B141: 0 | C141: 0 | D141: 0
A142: % of Fixed Rate Mortgages (reverting to SVR) | B142: 0.8273235824 | C142: 0.8275797281 | D142: 0.8333012341
A143: % of Term SONIA Linked Mortgages (reverting to Term SONIA plus a variable margin) | B143: 0 | C143: 0 | D143: 0
A144: % of Term SONIA Linked Mortgages plus a Variable Margin | B144: 0 | C144: 0 | D144: 0
A145: % of Non Reversionary Term SONIA Linked Mortgages | B145: 0 | C145: 0 | D145: 0
A146: % of SVR Mortgages | B146: 0.1726764176 | C146: 0.1724202719 | D146: 0.1666987659
A147: Weighted Average Loan Size | B147: 241910.8459 | C147: 242175.0381 | D147: 242390.6466
A148: Weighted Average Interest Rate | B148: 0.04749569899 | C148: 0.04755002366 | D148: 0.04763462058
A149: Weighted Average Maturity Date (years) | B149: 20.23374098 | C149: 19.99089111 | D149: 19.74096632
A150: Weighted Average Seasoning (months) | B150: 17.37067111 | C150: 20.31760347 | D150: 23.20719392
A151: % of Interest Only Mortgages (optional switching to repayment) | B151: 0.9656955399 | C151: 0.9660193894 | D151: 0.9679550284
A152: % of Repayment Mortgages | B152: 0.03430446014 | C152: 0.03398061058 | D152: 0.03204497157
A153: % of Mortgages in London | B153: 0.1739235226 | C153: 0.1742031071 | D153: 0.1736588009
A154: % of Mortgages in the South East | B154: 0.3007002871 | C154: 0.3011507365 | D154: 0.3006314384
A155: % of Owner Occupied Mortgages | B155: 0 | C155: 0 | D155: 0
A156: % of Investment Home Loans - Professional Landlords | B156: 1 | C156: 1 | D156: 1
A157: % of Investment Home Loans - Emerging Professional Landlords | B157: 0 | C157: 0 | D157: 0
A158: Weighted Average Interest Coverage Ratio (calculated at the origination date) | B158: 1.930923595 | C158: 1.931123052 | D158: 1.93333911
A159: Number of Properties in Possession | B159: 0 | C159: 0 | D159: 0
A160: Appointment of a Receiver of Rent | B160: 0 | C160: 0 | D160: 0
A161: Paragon Bank Quarterly Losses | B161: 0 | C161: 0 | D161: 0
A162: Arrears excluding Receiver of Rent and Possession Cases
A163: Performing Loans | B163: 1 | C163: 1 | D163: 1
A164: >1 to 2 months arrears | B164: 0 | C164: 0 | D164: 0
A165: >2 to 3 months arrears | B165: 0 | C165: 0 | D165: 0
A166: >3 months arrears | B166: 0 | C166: 0 | D166: 0
A167: Total | B167: =SUM(B163:B166) -> 1 | C167: =SUM(C163:C166) -> 1 | D167: =SUM(D163:D166) -> 1
A169: Underlying Assets - Paragon Bank (or Paragon Bank Acquired) Originated Assets (Emerging Professional) | B169: =+B138 -> 2023-11-30 | C169: 2024-02-29 | D169: =+D138 -> 2024-05-31
A170: Weighted Average LTV | B170: 0.6822443942 | C170: 0.6816262962 | D170: 0.6817425322
A171: Weighted Average Nationwide Indexed LTV | B171: 0.6766963145 | C171: 0.683520042 | D171: 0.6813218055
A172: % of Fixed Rate Mortgages (reverting to Term SONIA plus a variable margin) | B172: 0 | C172: 0 | D172: 0
A173: % of Fixed Rate Mortgages (reverting to SVR) | B173: 0.8251167396 | C173: 0.8266869018 | D173: 0.8302210955
A174: % of Term SONIA Linked Mortgages (reverting to Term SONIA plus a variable margin) | B174: 0 | C174: 0 | D174: 0
A175: % of Term SONIA Linked Mortgages plus a Variable Margin | B175: 0 | C175: 0 | D175: 0
A176: % of Non Reversionary Term SONIA Linked Mortgages | B176: 0 | C176: 0 | D176: 0
A177: % of SVR Mortgages | B177: 0.1748832604 | C177: 0.1733130982 | D177: 0.1697789045
A178: Weighted Average Loan Size | B178: 221596.3382 | C178: 222263.9993 | D178: 223584.812
A179: Weighted Average Interest Rate | B179: 0.04802623913 | C179: 0.04823237523 | D179: 0.04862845073
A180: Weighted Average Maturity Date (years) | B180: 19.89421419 | C180: 19.66876773 | D180: 19.48633402
A181: Weighted Average Seasoning (months) | B181: 23.8174499 | C181: 26.36410994 | D181: 28.68391254
A182: % of Interest Only Mortgages (optional switching to repayment) | B182: 0.9340612532 | C182: 0.9359569229 | D182: 0.9365849285
A183: % of Repayment Mortgages | B183: 0.06593874684 | C183: 0.06404307709 | D183: 0.06341507148
A184: % of Mortgages in London | B184: 0.1846452353 | C184: 0.1832502602 | D184: 0.1797554174
A185: % of Mortgages in the South East | B185: 0.2942476377 | C185: 0.2947931539 | D185: 0.299581361
A186: % of Owner Occupied Mortgages | B186: 0 | C186: 0 | D186: 0
A187: % of Investment Home Loans - Professional Landlords | B187: 0 | C187: 0 | D187: 0
A188: % of Investment Home Loans - Emerging Professional Landlords | B188: 1 | C188: 1 | D188: 1
A189: Weighted Average Interest Coverage Ratio (calculated at the origination date) | B189: 1.814313823 | C189: 1.815361555 | D189: 1.818845828
A190: Number of Properties in Possession | B190: 0 | C190: 0 | D190: 0
A191: Appointment of a Receiver of Rent | B191: 0 | C191: 0 | D191: 0
A192: Paragon Bank Quarterly Losses | B192: 0 | C192: 0 | D192: 0
A193: Arrears excluding Receiver of Rent and Possession Cases
A194: Performing Loans | B194: 1 | C194: 0.9970415783 | D194: 0.9970094885
A195: >1 to 2 months arrears | B195: 0 | C195: 0.002958421727 | D195: 0.002990511532
A196: >2 to 3 months arrears | B196: 0 | C196: 0 | D196: 0
A197: >3 months arrears | B197: 0 | C197: 0 | D197: 0
A198: Total | B198: =SUM(B194:B197) -> 1 | C198: =SUM(C194:C197) -> 1 | D198: =SUM(D194:D197) -> 1

Sheet Graphs
K2: PARAGON MORTGAGES (NO.29) PLC
